bitfinex-derivatives/quotes_ETHF0:USTF0_20260201
["timestamp","ask_amount","ask_price","bid_price","bid_amount"]
[1769987339595,0.22288,2245.9,2243.4,2.49841907]
[1769987339795,2.3842686,2245.8,2243.8,2.49841907]
[1769987339993,2.60623316,2246.3,2244.0,2.49841907]
[1769987340196,2.60970897,2246.3,2244.2,2.49841907]
[1769987340390,0.22544037,2246.3,2244.2,2.49841907]
[1769987340590,0.01146256,2245.6,2244.1,4.022]
[1769987340796,0.22544037,2246.3,2242.9,2.49841907]
[1769987340797,2.3842686,2244.7,2242.9,2.49841907]
[1769987341497,0.22196456,2246.3,2241.8,2.49841907]
[1769987341498,2.3842686,2243.9,2241.8,2.49841907]
[1769987341699,2.3842686,2242.9,2240.7,32.165]
[1769987341995,2.6075486,2241.9,2240.7,0.00375376]
[1769987342197,2.3842686,2241.6,2240.7,0.00375376]
[1769987342391,2.3842686,2241.6,2239.6,6.51841907]
[1769987342392,2.3842686,2242.2,2239.7,2.49841907]
[1769987342597,2.38879068,2242.9,2240.9,2.49841907]
[1769987342797,0.00452208,2242.9,2241.1,2.49841907]
[1769987343400,2.38879068,2242.9,2241.1,2.50334821]
[1769987343595,0.00452208,2242.9,2241.1,0.00492914]
[1769987343798,0.00452208,2242.9,2241.1,2.50334821]
[1769987344005,2.40025324,2242.9,2241.1,0.00492914]
[1769987344205,2.3842686,2242.7,2241.1,0.00492914]
[1769987344601,0.00452208,2242.9,2241.1,2.50334821]
[1769987345702,0.01146256,2241.9,2241.1,9.14e-06]
[1769987345901,2.3842686,2241.7,2240.8,40.8]
[1769987346095,2.3842686,2241.7,2239.4,4.018]
[1769987346096,0.01145342,2240.9,2239.4,4.018]
[1769987346298,2.3842686,2242.3,2239.6,2.49841907]
[1769987346605,0.22311,2243.4,2239.6,2.49841907]
[1769987346795,0.22311,2243.4,2239.4,4.018]
[1769987346796,2.3842686,2242.5,2239.9,2.49841907]
[1769987346997,2.38822841,2242.5,2240.9,2.49841907]
[1769987347197,2.3842686,2241.5,2239.9,0.00511217]
[1769987347404,0.01145342,2240.5,2239.9,0.00511217]
[1769987347701,0.22328,2241.6,2239.9,0.00511217]
[1769987347999,2.36732992,2241.2,2239.9,0.00511217]
[1769987348197,2.36732992,2241.0,2239.9,0.00511217]
[1769987348397,2.36732992,2241.0,2237.7,0.22366]
[1769987348398,2.36732992,2241.0,2238.1,2.3024015]
[1769987348602,2.59081992,2239.6,2237.6,2.3024015]
[1769987348795,0.2234,2240.5,2238.3,2.3024015]
[1769987348998,2.59073992,2240.4,2238.3,2.3024015]
[1769987349198,2.36732992,2240.2,2238.3,2.3024015]
[1769987349399,2.37233112,2240.2,2238.3,2.30637131]
[1769987349599,0.01145342,2240.0,2238.3,2.30637131]
[1769987349796,2.36732992,2239.8,2238.3,0.00396981]
[1769987349998,0.0050012,2240.2,2237.7,4.018]
[1769987349999,0.22356,2238.9,2237.7,4.018]
[1769987350207,0.22356,2238.9,2235.6,0.22387]
[1769987350208,2.59098992,2237.9,2235.8,2.3024015]
[1769987350503,2.36732992,2237.9,2235.8,2.3024015]
[1769987350699,2.36732992,2237.5,2235.8,2.3024015]
[1769987351001,2.36732992,2235.6,2233.2,2.3024015]
[1769987351210,2.59129992,2234.8,2232.1,4.019]
[1769987351403,2.36732992,2235.4,2232.2,2.3024015]
[1769987351603,2.8650411,2234.7,2232.4,2.3024015]
[1769987351800,2.36732992,2235.2,2233.4,40.8]
[1769987352098,0.22403,2234.2,2232.1,4.019]
[1769987352298,2.47598318,2235.1,2232.2,2.3024015]
[1769987352504,2.53531044,2234.1,2232.7,40.8]
[1769987352699,2.37878334,2234.4,2232.7,40.8]
[1769987352903,0.10865326,2234.3,2232.2,2.0441415]
[1769987353198,0.00460705,2235.2,2232.2,2.0441415]
[1769987353199,2.37878334,2234.1,2232.2,1.63969944]
[1769987353400,2.36732992,2234.1,2232.3,40.8]
[1769987353699,0.22056543,2234.0,2232.3,40.8]
[1769987353900,2.36732992,2235.3,2232.3,40.8]
[1769987354206,2.36732992,2237.6,2234.4,4.246]
[1769987354407,2.36732992,2237.6,2234.5,13.104]
[1769987354408,2.59100992,2237.6,2234.5,13.104]
[1769987354702,2.36732992,2236.8,2233.9,0.22196456]
[1769987354905,0.88033466,2238.3,2233.9,0.22196456]
[1769987354906,2.36732992,2236.6,2234.0,4.022]
[1769987355107,2.36732992,2236.6,2234.0,5.36851784]
[1769987355303,2.37203132,2236.6,2234.1,1.34651784]
[1769987355707,0.0047014,2236.6,2234.1,1.34651784]
[1769987355907,0.0047014,2236.6,2234.4,1.23618993]
[1769987356210,0.88033466,2238.3,2235.2,1.46010993]
[1769987356506,2.36732992,2238.0,2235.0,1.23618993]
[1769987356698,2.36732992,2237.1,2234.5,1.23618993]
[1769987357097,2.37194491,2237.1,2234.5,1.23618993]
[1769987357303,2.36732992,2238.4,2235.3,1.23618993]
[1769987357604,4.023,2239.5,2237.0,1.23618993]
[1769987357605,2.36732992,2239.5,2237.0,1.23618993]
[1769987357808,2.36732992,2239.5,2237.2,1.23618993]
[1769987358200,2.36732992,2240.7,2237.9,1.1261962]
[1769987358400,2.36732992,2240.7,2238.1,1.1261962]
[1769987358599,2.36732992,2241.1,2238.7,1.1261962]
[1769987358803,2.36732992,2240.7,2238.2,4.023]
[1769987359008,2.36732992,2239.9,2238.2,4.023]
[1769987359199,2.59655802,2239.9,2238.2,4.023]
[1769987359505,2.36732992,2239.4,2237.2,0.00529137]
[1769987359705,2.36732992,2239.2,2237.2,0.00529137]
[1769987360306,2.36732992,2238.7,2237.2,0.00529137]
[1769987360802,2.36732992,2239.3,2237.4,3.51635283]
[1769987361003,2.38339833,2239.3,2237.2,0.00529137]
[1769987361203,2.38339833,2239.2,2237.2,0.00529137]
[1769987361402,2.36732992,2239.2,2237.4,3.51635283]
[1769987361600,0.01606841,2239.0,2237.2,0.00529137]
[1769987361902,0.0057681,2239.9,2237.2,0.00529137]
[1769987361903,2.36732992,2238.2,2237.2,0.00529137]
[1769987362204,2.36732992,2237.8,2236.7,4.023]
[1769987362404,0.00485175,2238.2,2236.8,40.8]
[1769987362610,2.37218167,2238.2,2236.8,40.8]
[1769987362808,2.38339833,2237.3,2236.8,40.8]
[1769987363007,2.36732992,2237.9,2236.8,40.8]
[1769987363206,0.00485175,2238.2,2236.8,40.8]
[1769987363207,0.00485175,2238.2,2236.8,44.3217061]
[1769987363708,2.36732992,2239.1,2237.8,3.51635283]
[1769987364009,2.59085992,2239.1,2237.9,4.023]
[1769987364201,2.36732992,2238.7,2237.4,4.023]
[1769987364506,2.36732992,2238.3,2237.4,4.023]
[1769987364703,0.00438607,2238.3,2237.4,4.023]
[1769987364902,0.01606841,2238.1,2237.4,4.023]
[1769987365106,0.01606841,2238.2,2237.4,4.023]
[1769987365309,0.00438607,2238.3,2237.4,4.023]
[1769987365705,2.37171599,2238.3,2237.4,4.023]
[1769987365907,2.38339833,2237.8,2237.4,4.023]
[1769987366107,2.36732992,2237.6,2237.4,3.56233941]
[1769987366410,0.00438607,2238.3,2236.8,40.80535327]
[1769987366411,2.37171599,2238.3,2236.8,40.80535327]
[1769987366912,2.36732992,2237.8,2236.8,40.80535327]
[1769987367111,0.00438607,2238.3,2236.8,40.80535327]
[1769987367303,2.36732992,2238.0,2236.8,40.80535327]
[1769987367907,2.37171599,2238.3,2236.8,40.80535327]
[1769987368103,2.59098992,2237.9,2236.8,40.80535327]
[1769987368309,2.36732992,2237.7,2236.8,40.80535327]
[1769987368715,0.22371,2237.3,2235.7,7.53935283]
[1769987368910,2.59096992,2238.1,2235.8,1.05487887]
[1769987369109,2.36732992,2238.1,2236.3,3.51635283]
[1769987369409,2.59100992,2237.7,2236.1,3.10910941]
[1769987369606,2.36732992,2237.5,2236.4,40.8]
[1769987369804,2.59109992,2236.7,2236.1,0.00374203]
[1769987370008,0.0048017,2236.7,2236.1,0.00374203]
[1769987370208,2.36732992,2237.8,2236.1,0.00374203]
[1769987370509,3.51635283,2239.4,2236.1,0.00374203]
[1769987370713,0.22366,2237.9,2236.2,40.8]
[1769987371107,0.2237,2237.4,2236.2,40.8]
[1769987371416,0.00382122,2237.9,2236.2,40.8]
[1769987371713,3.51635283,2237.7,2235.4,4.024]
[1769987371910,0.22379,2236.6,2235.4,4.024]
[1769987372211,0.22379,2236.6,2232.9,6.48275833]
[1769987372212,0.22379,2236.6,2234.4,4.024]
[1769987372408,2.36732992,2236.2,2234.6,3.51635283]
[1769987372716,2.36732992,2235.6,2234.6,0.00398791]
[1769987372916,2.59626595,2236.2,2234.8,3.10910941]
[1769987373112,2.37243595,2236.2,2234.6,0.00398791]
[1769987373411,0.00510603,2236.2,2234.6,2.30638941]
[1769987373718,0.00510603,2236.2,2234.6,5.82274224]
[1769987373913,0.00510603,2236.2,2235.1,2.64866941]
[1769987374214,0.00510603,2236.2,2235.6,2.64866941]
[1769987374406,0.00510603,2236.2,2235.3,2.64866941]
[1769987374609,2.36732992,2236.4,2234.7,2.3024015]
[1769987374610,2.36732992,2237.0,2235.1,3.51635283]
[1769987374807,2.36732992,2237.0,2234.8,2.64866941]
[1769987375007,0.22373,2237.2,2235.7,2.64866941]
[1769987375313,0.22373,2237.2,2235.7,4.025]
[1769987375514,2.36732992,2238.1,2236.8,2.64866941]
[1769987375714,2.36732992,2238.1,2236.2,4.95107091]
[1769987375913,0.22367,2237.8,2236.2,2.3024015]
[1769987376116,2.59099992,2237.8,2236.2,2.64866941]
[1769987376311,2.59099992,2237.8,2235.8,2.3024015]
[1769987376513,0.00517227,2237.8,2236.5,2.64866941]
[1769987376909,2.36732992,2237.2,2235.8,0.00367061]
[1769987377117,0.22376,2236.9,2235.8,0.00367061]
[1769987377313,2.59109992,2236.7,2235.8,0.00367061]
[1769987377516,2.59109992,2236.7,2234.7,5.81875433]
[1769987377517,2.59109992,2236.7,2234.8,2.46877608]
[1769987377717,2.59109992,2236.7,2235.1,2.64866941]
[1769987377914,0.2238,2236.4,2235.2,40.8]
[1769987378219,2.37526827,2236.5,2235.2,40.8]
[1769987378416,0.22375,2237.0,2235.2,46.78885219]
[1769987378613,2.59901827,2237.0,2235.2,0.00372328]
[1769987378810,3.51635283,2234.6,2231.0,29.92926591]
[1769987379016,3.51635283,2234.6,2229.4,3.51635283]
[1769987379017,0.22432,2231.3,2228.9,2.88197695]
[1769987379220,0.22435,2231.0,2229.1,2.54180882]
[1769987379411,2.47393302,2229.8,2229.0,40.8]
[1769987379616,2.4753565,2230.8,2229.3,2.54180882]
[1769987379815,1.88048583,2229.7,2229.3,2.54180882]
[1769987380019,2.37526827,2230.6,2229.4,57.16196121]
[1769987380322,0.55036175,2229.6,2229.0,97.96730843]
[1769987380516,2.37526827,2231.4,2229.1,54.99853101]
[1769987380723,0.003706,2231.4,2229.5,5.98512891]
[1769987381020,0.22418,2232.7,2229.6,5.64885669]
[1769987381226,4.97391199,2233.4,2230.2,3.51635283]
[1769987381414,4.027,2233.4,2230.3,4.027]
[1769987381616,0.22413,2233.2,2230.4,54.7520606]
[1769987381813,0.22914873,2233.2,2230.4,54.7520606]
[1769987382225,0.22421,2232.4,2230.4,52.61955674]
[1769987382720,9.00191199,2232.8,2229.6,4.028]
[1769987382920,2.37526827,2231.6,2229.0,40.80534722]
[1769987383115,0.22436,2230.9,2229.0,0.00534722]
[1769987383316,0.00528784,2231.6,2229.0,52.62490396]
[1769987383317,2.37526827,2230.5,2229.0,52.62490396]
[1769987383515,2.37526827,2230.5,2227.4,4.028]
[1769987383516,0.22442,2230.3,2227.4,7.54435283]
[1769987383816,2.37526827,2230.1,2227.5,96.93590957]
[1769987384017,2.37526827,2230.1,2227.8,3.51635283]
[1769987384316,2.37526827,2230.1,2227.6,6.1584097]
[1769987384317,2.37526827,2230.5,2228.9,3.51635283]
[1769987384517,2.37526827,2231.5,2229.0,4.03]
[1769987384718,1.99175763,2230.0,2229.0,52.61955674]
[1769987384919,2.37526827,2229.9,2229.0,52.61955674]
[1769987385120,0.00341798,2230.0,2229.2,0.34551535]
[1769987385425,8.49026482,2232.3,2228.9,0.00568611]
[1769987385426,0.11065154,2229.8,2229.1,52.61613876]
[1769987385816,2.37526827,2230.2,2229.2,52.5054326]
[1769987386120,0.22131798,2229.7,2229.0,52.5054326]
[1769987386315,2.37526827,2230.2,2229.0,52.5054326]
[1769987386521,3.51635283,2232.2,2229.1,52.5054326]
[1769987386717,0.66361146,2230.0,2229.1,52.5054326]
[1769987386919,0.66361146,2230.0,2228.9,0.00568611]
[1769987387121,0.66361146,2230.0,2228.9,52.51111871]
[1769987387321,0.22434,2231.1,2228.9,0.00568611]
[1769987387520,0.22790536,2231.1,2229.0,52.08490028]
[1769987387828,0.00356536,2231.1,2229.0,52.08490028]
[1769987388024,0.00356536,2231.1,2229.1,4.032]
[1769987388318,0.22415,2233.0,2230.3,2.3134973]
[1769987388524,2.36105899,2232.9,2230.5,2.3134973]
[1769987389023,2.36105899,2232.7,2230.6,52.08133492]
[1769987389226,2.58529899,2232.1,2229.4,9.86285013]
[1769987389420,2.58529899,2232.1,2230.6,0.0043814]
[1769987389622,2.58529899,2232.1,2230.6,40.8043814]
[1769987389822,2.58531899,2231.9,2230.6,0.0043814]
[1769987390124,2.58534899,2231.6,2229.4,6.3464973]
[1769987390320,2.36105899,2231.1,2229.6,40.8]
[1769987390523,4.033,2231.7,2228.9,52.08133492]
[1769987390524,2.58541899,2230.9,2228.9,52.08133492]
[1769987390724,2.58544899,2230.6,2228.4,56.11433492]
[1769987390922,2.36105899,2230.6,2228.5,44.31635283]
[1769987391116,2.36585163,2230.6,2228.5,40.80409316]
[1769987391322,2.36105899,2230.4,2228.6,52.08133492]
[1769987391527,2.36105899,2230.4,2228.7,3.51635283]
[1769987391727,2.36105899,2231.5,2229.4,2.3134973]
[1769987391921,2.36105899,2231.5,2229.6,40.8]
[1769987392230,2.36105899,2231.5,2229.7,52.07654228]
[1769987392726,2.36105899,2231.5,2228.8,13.144]
[1769987392926,2.36574753,2231.5,2228.9,52.07654228]
[1769987393126,2.36574753,2231.5,2229.0,40.8]
[1769987393327,2.36574753,2231.5,2229.3,2.3134973]
[1769987393524,0.87376564,2233.1,2230.2,2.3134973]
[1769987393725,2.36105899,2232.5,2230.4,2.3134973]
[1769987394131,2.36105899,2232.5,2230.6,2.3134973]
[1769987394325,2.36105899,2232.5,2230.5,52.07654227]
[1769987394628,2.36502921,2232.5,2230.5,54.39537792]
[1769987395224,2.36502921,2232.5,2230.5,52.08188062]
[1769987395626,2.36502921,2232.5,2230.6,2.3134973]
[1769987396126,2.36105899,2233.0,2230.7,52.07257205]
[1769987396332,2.36105899,2232.9,2230.7,52.07257205]
[1769987396829,2.36105899,2232.9,2230.8,2.3134973]
[1769987397030,2.36490075,2232.9,2230.8,2.3134973]
[1769987397231,2.36490075,2232.9,2231.0,2.3134973]
[1769987397428,2.36105899,2233.4,2231.6,2.3134973]
[1769987397824,2.36105899,2234.1,2232.0,2.3134973]
[1769987398327,2.36105899,2236.0,2233.6,2.3134973]
[1769987398527,2.36646054,2236.0,2234.1,2.3134973]
[1769987398724,2.36646054,2236.0,2234.7,40.8]
[1769987398926,0.34016813,2236.3,2234.8,6.3474973]
[1769987399124,2.36105899,2237.3,2235.6,2.3134973]
[1769987399327,2.36105899,2238.4,2236.1,2.3134973]
[1769987399523,2.36105899,2239.2,2237.0,3.51635283]
[1769987399831,2.36105899,2239.2,2237.0,2.3134973]
[1769987400028,2.36560176,2239.2,2237.6,3.51635283]
[1769987400229,6.21738999,2240.5,2237.6,3.51635283]
[1769987400230,2.36105899,2240.5,2238.2,2.22518585]
[1769987400424,2.36105899,2241.2,2238.7,2.22518585]
[1769987400729,2.36105899,2240.2,2237.7,52.0671705]
[1769987400928,10.0635284,2241.1,2237.7,52.0671705]
[1769987400929,2.36105899,2239.2,2237.7,52.0671705]
[1769987401130,2.36105899,2239.2,2237.8,52.0671705]
[1769987401333,2.36105899,2239.0,2237.8,0.00313798]
[1769987401531,2.36105899,2238.5,2237.8,0.00313798]
[1769987401730,2.36105899,2238.5,2236.2,2.22518585]
[1769987401934,0.00524356,2239.2,2236.7,2.16123665]
[1769987402135,2.36105899,2240.7,2238.8,2.16123665]
[1769987402333,0.55896318,2241.3,2239.2,2.16123665]
[1769987402527,2.36105899,2240.8,2239.2,52.06192694]
[1769987402728,2.36105899,2239.2,2236.9,6.19223665]
[1769987403029,2.36105899,2238.9,2235.8,2.16123665]
[1769987403232,4.031,2239.7,2235.8,2.16123665]
[1769987403233,2.10005899,2238.7,2237.0,40.8]
[1769987403633,2.10005899,2238.7,2237.1,52.06192694]
[1769987403836,0.00423109,2239.2,2237.1,52.06192694]
[1769987403837,0.00423109,2239.2,2237.2,2.3134973]
[1769987404033,0.00423109,2239.2,2237.3,2.3134973]
[1769987404237,0.00423109,2239.2,2237.8,2.3134973]
[1769987404442,3.51635283,2240.3,2237.4,54.37542424]
[1769987404639,0.55896318,2241.3,2237.8,2.3134973]
[1769987404937,0.55896318,2241.3,2239.7,2.3134973]
[1769987405138,3.51635283,2243.4,2240.2,2.3134973]
[1769987405336,2.36105899,2243.3,2240.7,2.3134973]
[1769987405541,2.36105899,2243.3,2241.2,2.3134973]
[1769987405740,2.36105899,2243.2,2240.8,2.16447671]
[1769987405940,2.36105899,2242.8,2240.9,4.028]
[1769987406144,0.00374722,2243.4,2241.8,2.16447671]
[1769987406339,2.36105899,2243.3,2240.9,51.50296376]
[1769987406536,2.36105899,2242.6,2241.0,51.50296376]
[1769987406740,2.36105899,2241.8,2240.1,50.48957651]
[1769987406938,4.028,2242.5,2240.2,50.48957651]
[1769987407246,2.36105899,2242.4,2240.7,40.8]
[1769987407544,2.36663603,2242.4,2240.7,40.80487727]
[1769987407739,2.36663603,2242.4,2240.8,50.48957651]
[1769987407933,2.36663603,2242.4,2238.9,2.18098584]
[1769987407934,2.29098379,2241.9,2238.9,2.18098584]
[1769987408137,2.29098379,2241.4,2239.2,3.51635283]
[1769987408336,2.29098379,2241.4,2239.3,2.18098584]
[1769987408645,2.29098379,2241.4,2239.4,40.8]
[1769987408844,0.00557704,2242.4,2239.4,40.8]
[1769987408845,2.29098379,2240.8,2239.4,91.28957651]
[1769987409044,2.29569911,2240.8,2239.4,91.29317456]
[1769987409242,0.88215017,2240.2,2239.4,91.29317456]
[1769987409443,0.88215017,2240.7,2239.4,50.49317456]
[1769987409847,0.00471532,2240.8,2239.4,50.49317456]
[1769987410046,2.29098379,2240.9,2239.4,50.49317456]
[1769987410349,2.29098379,2240.7,2237.9,4.025]
[1769987410650,7.54135283,2240.8,2238.0,2.43460304]
[1769987410842,4.024,2240.8,2238.1,2.43460304]
[1769987411048,4.024,2240.7,2238.0,50.48957651]
[1769987411352,9.84308437,2240.6,2235.7,2.43460304]
[1769987411544,35.71115565,2240.4,2235.9,2.43460304]
[1769987411745,4.43,2240.2,2236.0,91.28957651]
[1769987411940,4.43,2239.3,2234.4,4.024]
[1769987412147,35.71115565,2237.6,2233.0,4.024]
[1769987412348,35.71115565,2237.3,2233.9,0.0031512]
[1769987412543,2.29098379,2236.4,2231.6,2.43460304]
[1769987412750,2.29098379,2236.2,2231.6,2.43460304]
[1769987412945,2.29098379,2236.0,2232.0,40.8]
[1769987413149,2.29098379,2236.0,2231.4,50.48957651]
[1769987413351,2.29098379,2235.2,2231.2,50.48957651]
[1769987413550,2.29098379,2235.2,2229.8,10.314]
[1769987413551,2.29098379,2234.1,2230.1,50.48957651]
[1769987413747,2.29098379,2233.9,2230.2,40.8]
[1769987413946,2.29098379,2233.7,2230.2,40.8]
[1769987414153,2.29098379,2233.7,2230.3,50.48957651]
[1769987414345,2.29098379,2233.5,2230.4,2.43460304]
[1769987414547,2.29519808,2233.5,2230.4,0.00524456]
[1769987414749,2.29519808,2233.5,2229.1,2.43460304]
[1769987414750,2.29098379,2233.2,2229.1,2.43460304]
[1769987414948,2.29098379,2233.2,2229.3,2.43460304]
[1769987415152,2.29098379,2233.2,2230.8,2.43460304]
[1769987415355,2.29098379,2235.0,2231.8,2.43460304]
[1769987415556,2.29098379,2237.1,2232.7,2.43460304]
[1769987415761,2.29098379,2237.1,2229.0,0.22196456]
[1769987415762,2.29098379,2237.1,2233.2,2.43460304]
[1769987415956,2.29098379,2238.4,2233.6,2.43460304]
[1769987416162,2.29098379,2238.4,2234.6,2.43460304]
[1769987416364,2.29636646,2238.4,2234.8,2.43460304]
[1769987416661,2.29636646,2238.4,2235.3,2.43460304]
[1769987416862,2.29636646,2238.4,2235.4,50.48536222]
[1769987417063,3.534,2238.3,2235.4,50.48536222]
[1769987417263,7.92417849,2238.2,2234.6,0.00472928]
[1769987417460,2.29098379,2237.2,2233.1,4.027]
[1769987417661,2.29098379,2236.9,2233.2,50.48536222]
[1769987417859,2.29098379,2236.7,2233.2,50.48536222]
[1769987418058,2.29098379,2236.5,2233.3,2.43460304]
[1769987418260,2.29098379,2237.9,2234.3,2.43460304]
[1769987418455,2.29098379,2240.0,2236.6,2.43460304]
[1769987418660,2.29098379,2240.6,2238.3,2.43460304]
[1769987419063,2.29098379,2240.6,2238.4,50.48536222]
[1769987419261,2.29098379,2240.6,2232.8,2.43460304]
[1769987419564,2.09765879,2239.6,2235.0,2.43460304]
[1769987419764,2.09765879,2239.6,2235.2,2.43460304]
[1769987419960,1.8349503,2240.5,2236.7,2.43460304]
[1769987420168,1.8349503,2240.4,2236.9,2.43460304]
[1769987420562,1.8349503,2240.4,2237.7,2.43460304]
[1769987420959,1.8349503,2240.4,2237.8,47.94057235]
[1769987421162,1.8349503,2240.2,2236.7,0.00346925]
[1769987421365,1.8349503,2239.3,2236.7,47.9440416]
[1769987421564,1.8349503,2239.1,2236.7,47.9440416]
[1769987421763,5.89589954,2239.2,2236.9,2.43460304]
[1769987421969,1.86889954,2239.1,2236.9,2.43460304]
[1769987422169,1.86889954,2239.1,2237.0,50.37517539]
[1769987422466,1.86889954,2239.8,2237.4,2.65793289]
[1769987422669,1.86889954,2239.6,2237.4,2.43460304]
[1769987422866,1.86889954,2239.6,2236.8,40.8]
[1769987423064,1.86889954,2239.6,2237.4,2.43460304]
[1769987423463,1.86889954,2239.6,2237.5,47.94057235]
[1769987423668,1.86889954,2239.6,2237.1,2.43460304]
[1769987424066,1.86889954,2239.6,2237.2,50.37517539]
[1769987424270,1.84880095,2240.3,2238.2,2.43460304]
[1769987424472,0.22196456,2241.3,2238.8,2.43460304]
[1769987424767,0.22196456,2241.3,2238.9,2.43460304]
[1769987424964,1.84880095,2241.2,2238.9,47.94057235]
[1769987425271,5.87807285,2240.6,2238.8,0.00539551]
[1769987425467,1.84880095,2240.5,2238.8,47.94596786]
[1769987425863,1.84038619,2240.3,2238.8,0.00539551]
[1769987426064,5.73910702,2240.2,2237.8,2.43460304]
[1769987426369,1.84038619,2240.0,2237.9,88.74057235]
[1769987426568,5.74315053,2239.9,2237.9,40.8]
[1769987426865,37.7735064,2241.3,2238.7,2.43460304]
[1769987427168,35.71115565,2241.2,2238.8,43.23460304]
[1769987427464,35.71115565,2241.2,2238.8,0.00540575]
[1769987427465,7.60051638,2240.5,2238.8,0.00540575]
[1769987427665,1.83498044,2239.9,2237.6,2.43460304]
[1769987427971,4.025,2240.1,2237.8,2.43460304]
[1769987428471,1.78948999,2239.6,2237.8,47.94057235]
[1769987428670,1.78948999,2240.2,2238.2,2.43460304]
[1769987428870,35.71115565,2240.7,2238.2,2.43460304]
[1769987429066,1.78948999,2240.1,2238.3,47.94057235]
[1769987429276,37.50064564,2239.8,2237.8,0.005798]
[1769987429568,1.78948999,2239.1,2237.0,2.43460304]
[1769987429764,1.78948999,2239.1,2236.5,4.025]
[1769987429765,1.78948999,2238.7,2236.6,2.43460304]
[1769987429967,9.79327468,2238.6,2236.7,2.43460304]
[1769987430168,4.88130224,2236.8,2232.0,2.43460304]
[1769987430365,1.59714645,2236.3,2234.1,2.43460304]
[1769987430566,1.59714645,2236.3,2234.1,2.44018377]
[1769987430767,0.00539822,2236.8,2234.9,2.43460304]
[1769987430961,1.59714645,2236.6,2234.3,2.43460304]
[1769987431167,1.59714645,2236.5,2234.3,2.43460304]
[1769987431367,36.68290849,2236.8,2234.5,2.43460304]
[1769987431563,0.00539822,2236.8,2234.5,2.43460304]
[1769987431767,0.00539822,2236.8,2234.7,2.65793289]
[1769987431967,0.00539822,2236.8,2234.7,2.43460304]
[1769987432167,0.00539822,2236.8,2234.8,2.65793289]
[1769987432368,6.08439822,2237.0,2234.9,2.43460304]
[1769987432664,5.74930827,2236.9,2234.9,2.43460304]
[1769987432872,5.74930827,2236.8,2235.0,46.94187246]
[1769987433066,5.74930827,2236.7,2235.0,46.94187246]
[1769987433266,0.00331579,2236.7,2235.0,46.94187246]
[1769987433472,0.00331579,2236.7,2235.0,49.3764755]
[1769987433771,0.00331579,2236.7,2235.1,2.43460304]
[1769987433970,0.00331579,2236.7,2235.3,2.65793289]
[1769987434168,0.00331579,2236.7,2235.5,2.43460304]
[1769987434363,0.00331579,2236.7,2235.0,46.94187246]
[1769987434569,0.00331579,2236.7,2235.5,2.43460304]
[1769987434772,7.592,2237.7,2235.8,2.43460304]
[1769987435069,5.73680932,2237.6,2235.8,2.43460304]
[1769987435264,5.73661486,2237.5,2236.0,2.43460304]
[1769987435467,4.025,2237.7,2236.0,2.43460304]
[1769987435667,4.025,2237.7,2236.1,90.39980535]
[1769987435867,4.02826027,2237.7,2236.2,2.43460304]
[1769987436070,4.02826027,2237.7,2236.3,46.94187246]
[1769987436372,5.76374098,2237.6,2236.3,46.94187246]
[1769987436569,42.44038985,2237.5,2236.1,0.00578537]
[1769987436766,5.76287958,2237.4,2236.1,0.00578537]
[1769987436970,5.76287958,2237.4,2235.0,2.43460304]
[1769987436971,36.67751027,2236.8,2235.0,2.43460304]
[1769987437171,5.77326356,2236.7,2235.0,2.43460304]
[1769987437372,5.77275875,2236.6,2235.2,2.43460304]
[1769987437669,5.77549432,2236.5,2235.2,2.43460304]
[1769987437974,36.67751027,2237.1,2235.5,0.22332985]
[1769987438168,5.78327913,2237.0,2235.3,46.94187246]
[1769987438379,36.67751027,2236.2,2234.4,2.31218103]
[1769987438676,36.67751027,2235.5,2233.9,2.31218103]
[1769987438875,5.78327913,2235.4,2233.9,2.31218103]
[1769987439076,36.67751027,2236.3,2234.8,0.22332985]
[1769987439369,36.67751027,2236.0,2234.5,2.31218103]
[1769987439674,2.46261831,2235.8,2234.8,0.0032709]
[1769987439871,2.46261831,2235.7,2234.6,46.94187246]
[1769987440068,2.46261831,2235.4,2233.9,2.31218103]
[1769987440274,2.46261831,2235.1,2233.9,2.31218103]
[1769987440466,2.46261831,2235.1,2234.0,46.94187246]
[1769987440971,2.46261831,2234.4,2232.7,2.31218103]
[1769987441170,5.7889238,2234.4,2232.7,2.31218103]
[1769987441376,5.7889238,2234.4,2230.8,13.123]
[1769987441377,2.46261831,2235.0,2232.9,2.31218103]
[1769987441571,2.46261831,2234.8,2232.9,2.31218103]
[1769987441872,2.46261831,2234.5,2233.1,2.31218103]
[1769987442069,8.25491839,2234.4,2233.2,46.94187246]
[1769987442269,2.46261831,2233.3,2231.9,2.31218103]
[1769987442570,2.46261831,2232.3,2230.7,46.94187246]
[1769987442775,5.79230008,2232.2,2230.5,2.31218103]
[1769987442973,2.46261831,2231.7,2230.0,2.31218103]
[1769987443169,2.46261831,2230.6,2229.3,46.94187246]
[1769987443368,1.25605926,2230.2,2227.4,2.31218103]
[1769987443574,1.25605926,2229.5,2227.5,2.31218103]
[1769987443772,3.628,2229.9,2227.7,2.31218103]
[1769987444072,0.66440088,2229.4,2227.7,2.31218103]
[1769987444275,0.00373987,2230.6,2229.2,2.31218103]
[1769987444472,1e-08,2229.4,2229.3,49.25405349]
[1769987444773,3.632,2230.2,2228.7,2.31218103]
[1769987444973,1.28095903,2229.4,2226.7,2.31218103]
[1769987445173,1.28095903,2229.2,2226.8,46.94187246]
[1769987445374,2.46261831,2228.9,2226.4,2.31218103]
[1769987445575,12.55006724,2229.1,2225.9,4.03]
[1769987445576,1.21847832,2229.1,2226.6,2.31218103]
[1769987445774,0.77570856,2228.8,2227.4,2.31218103]
[1769987445968,1.22319189,2229.1,2227.4,2.31218103]
[1769987445969,0.55329266,2228.9,2227.4,2.31218103]
[1769987446177,1.26130744,2228.8,2226.7,2.39100205]
[1769987446372,1.26130744,2228.6,2226.6,0.0040235]
[1769987446574,1.26130744,2228.6,2226.7,46.94187246]
[1769987446770,0.3324913,2228.5,2226.8,2.39100205]
[1769987446970,2.30839029,2228.3,2162.0,6.325]
[1769987447171,2.30839029,2228.1,2219.3,12.94625531]
[1769987447377,2.30839029,2227.8,2222.6,4.033]
[1769987447571,2.30839029,2227.4,2221.3,4.033]
[1769987447870,36.67751027,2227.7,2220.0,28.231]
[1769987447871,2.30839029,2225.8,2220.0,28.231]
[1769987448071,2.30839029,2224.6,2220.7,0.0156051]
[1769987448275,2.30839029,2223.1,2220.7,0.0156051]
[1769987448575,1.78187532,2223.0,2220.7,4.0496051]
[1769987448773,0.8287278,2223.0,2220.8,4.035]
[1769987449076,0.8287278,2223.0,2221.9,2.39100205]
[1769987449275,0.22494,2225.1,2220.7,0.0156051]
[1769987449276,2.30839029,2225.5,2223.1,2.39100205]
[1769987449675,2.00758593,2223.8,2222.8,1.43198433]
[1769987449881,2.97918329,2225.4,2222.8,1.43198433]